bitfinex-derivatives/quotes_ETHF0:USTF0_20260226
["timestamp","ask_amount","ask_price","bid_price","bid_amount"]
[1772120284613,11.59536055,2021.6,2020.5,0.00366662]
[1772120284912,11.59536055,2021.4,2020.5,0.00366662]
[1772120285108,11.59536055,2021.2,2020.0,11.3175184]
[1772120285315,11.59536055,2021.0,2020.0,11.3175184]
[1772120285916,0.24738,2021.1,2020.0,11.3175184]
[1772120286114,0.24738,2021.1,2020.0,11.32144109]
[1772120286414,11.84274055,2021.1,2020.0,11.32144109]
[1772120286914,11.59536055,2020.9,2019.7,11.3175184]
[1772120287317,21.95636055,2020.9,2019.7,11.3175184]
[1772120287915,11.59536055,2020.8,2019.7,11.32381654]
[1772120288712,10.361,2020.9,2019.7,0.00629814]
[1772120288713,11.59536055,2020.3,2019.7,0.00629814]
[1772120288912,11.59536055,2020.2,2019.4,11.3175184]
[1772120289415,11.84285055,2020.2,2019.0,11.3175184]
[1772120289712,21.95936055,2020.3,2019.0,11.3175184]
[1772120289917,21.96473255,2020.3,2019.0,11.32185528]
[1772120290118,21.96473255,2020.3,2019.2,11.3175184]
[1772120290619,22.21221255,2020.3,2019.2,11.3175184]
[1772120290814,11.59536055,2020.2,2019.2,11.3175184]
[1772120291712,10.616852,2020.3,2019.0,0.00433688]
[1772120291713,0.2475,2020.1,2019.0,0.00433688]
[1772120291912,11.59536055,2019.8,2019.0,0.00433688]
[1772120292118,11.84291055,2019.7,2019.0,0.00433688]
[1772120292314,11.84285055,2020.2,2019.0,11.32185528]
[1772120292513,11.59536055,2020.2,2019.1,11.3175184]
[1772120292717,0.005372,2020.3,2019.1,11.3175184]
[1772120293016,0.005372,2020.3,2019.2,11.5651284]
[1772120293224,0.005372,2020.3,2019.2,11.3175184]
[1772120294214,11.59536055,2021.0,2019.4,11.3175184]
[1772120294419,11.59536055,2021.0,2019.6,11.3175184]
[1772120295418,11.60094305,2021.0,2019.6,11.3175184]
[1772120296211,11.84276055,2020.9,2019.6,11.3175184]
[1772120296813,11.59536055,2020.4,2019.6,11.3175184]
[1772120297016,11.59536055,2020.2,2019.3,20.2475184]
[1772120297317,0.24748,2020.3,2019.4,11.3175184]
[1772120297717,11.84284055,2020.3,2019.4,11.3175184]
[1772120298022,0.24752,2019.9,2019.0,11.32185528]
[1772120298516,11.84288055,2019.9,2019.0,0.00433688]
[1772120299117,11.59536055,2019.6,2019.0,0.00230065]
[1772120299922,11.59536055,2019.4,2019.0,0.00230065]
[1772120300217,11.59536055,2019.4,2018.6,11.3175184]
[1772120300429,21.95936055,2019.4,2018.6,11.3175184]
[1772120300719,6.08929,2019.9,2018.6,11.3175184]
[1772120300720,11.59536055,2019.9,2018.6,11.3175184]
[1772120301121,11.59970455,2019.9,2018.6,11.32177377]
[1772120302019,0.004344,2019.9,2018.8,11.5651784]
[1772120302324,11.59536055,2020.8,2019.1,11.3175184]
[1772120302522,11.59536055,2020.8,2019.3,11.3175184]
[1772120303218,0.00414907,2020.8,2019.5,11.3175184]
[1772120303617,11.59950962,2020.8,2019.5,11.3175184]
[1772120304021,0.00414907,2020.8,2019.5,11.3175184]
[1772120305022,11.59950962,2020.8,2019.5,11.3175184]
[1772120305226,11.84281055,2020.5,2019.5,11.3175184]
[1772120305424,0.00414907,2020.8,2019.5,11.3175184]
[1772120305829,11.59950962,2020.8,2019.5,11.3175184]
[1772120306628,11.59950962,2020.8,2018.8,6.09251]
[1772120306629,10.73164027,2019.0,2017.1,11.01386238]
[1772120306824,10.73164027,2018.5,2017.1,11.01386238]
[1772120307028,10.73164027,2018.5,2017.3,11.01386238]
[1772120307228,10.97934027,2018.5,2017.3,11.01386238]
[1772120307427,10.73164027,2018.4,2017.3,11.01386238]
[1772120307628,10.73164027,2018.2,2017.3,11.01848464]
[1772120307830,10.73164027,2017.8,2017.3,0.00462226]
[1772120308029,10.362,2017.7,2016.9,11.01386238]
[1772120308224,21.09364027,2017.7,2016.9,11.01386238]
[1772120308427,10.73164027,2017.5,2016.6,11.01386238]
[1772120309035,10.73164027,2017.5,2016.6,11.02021679]
[1772120309335,10.73164027,2017.0,2016.6,4.41e-06]
[1772120309524,21.09864027,2016.9,2016.0,11.01386238]
[1772120309724,10.371,2016.8,2016.0,11.01386238]
[1772120310430,8.56347967,2017.5,2016.0,11.01386238]
[1772120310431,10.73164027,2017.5,2016.0,11.01386238]
[1772120310632,10.73758553,2017.5,2016.0,11.24255181]
[1772120310831,0.00594526,2017.5,2016.0,11.01949444]
[1772120311031,0.00594526,2017.5,2016.2,11.01386238]
[1772120311230,0.24772,2018.3,2016.2,17.36216238]
[1772120311532,10.73164027,2018.7,2016.9,11.01386238]
[1772120311732,10.73164027,2018.5,2017.1,11.01386238]
[1772120312130,10.373,2018.4,2017.3,11.01386238]
[1772120312338,0.0040689,2018.4,2017.3,11.01386238]
[1772120313032,0.0040689,2018.4,2017.5,11.01386238]
[1772120313233,0.0040689,2018.4,2017.5,11.01746122]
[1772120313531,10.73164027,2018.3,2017.5,11.01746122]
[1772120313736,10.373,2018.2,2017.5,11.01746122]
[1772120313936,10.373,2018.2,2017.5,0.00359884]
[1772120314136,10.73164027,2018.3,2017.5,0.00359884]
[1772120314336,10.375,2018.2,2017.5,11.01746122]
[1772120314538,10.97939027,2018.1,2017.5,0.00359884]
[1772120314934,10.97939027,2018.1,2017.2,11.01386238]
[1772120315435,10.382,2018.0,2017.2,11.01386238]
[1772120315842,10.382,2018.0,2017.2,11.01779814]
[1772120316041,10.73164027,2017.9,2017.2,0.00393576]
[1772120316942,10.97942027,2017.8,2017.2,0.00393576]
[1772120317140,0.24778,2017.8,2017.2,11.01779814]
[1772120317337,6.0978889,2018.4,2017.2,11.01779814]
[1772120317338,10.391,2018.3,2017.2,11.01779814]
[1772120317944,10.3960689,2018.4,2017.2,11.01779814]
[1772120318338,0.0040689,2018.4,2017.2,11.01779814]
[1772120318637,0.0040689,2018.4,2017.4,11.00360968]
[1772120318837,0.0040689,2018.4,2017.4,19.94760968]
[1772120319038,0.0040689,2018.4,2017.6,11.00360968]
[1772120319239,0.24765,2019.0,2017.6,11.00360968]
[1772120319440,0.24765,2019.0,2017.8,11.00360968]
[1772120320339,0.00578309,2019.0,2017.8,11.00360968]
[1772120320739,0.00578309,2019.0,2018.0,11.00360968]
[1772120321144,0.00578309,2019.0,2018.2,11.00360968]
[1772120324138,10.379,2019.5,2018.2,11.00360968]
[1772120324446,10.379,2019.5,2018.4,11.00360968]
[1772120324740,6.08765,2020.5,2018.6,11.00360968]
[1772120324741,10.79651815,2020.0,2018.6,11.00360968]
[1772120324940,11.04403815,2019.9,2018.6,11.00360968]
[1772120325141,11.04787022,2019.9,2018.6,11.00360968]
[1772120326747,10.62435207,2019.9,2018.8,11.00360968]
[1772120326948,10.62435207,2019.9,2018.8,11.00819558]
[1772120327450,0.00383207,2019.9,2018.8,11.00819558]
[1772120327650,0.24747,2020.4,2019.0,11.00360968]
[1772120328046,21.16851815,2020.8,2019.2,11.00360968]
[1772120328250,11.04394815,2020.7,2019.4,11.00360968]
[1772120328752,11.05032844,2020.7,2019.4,11.00360968]
[1772120329747,11.05032844,2020.7,2019.5,11.00360968]
[1772120330250,10.392,2020.6,2019.5,11.00360968]
[1772120331557,0.00638029,2020.7,2019.5,11.00360968]
[1772120331856,10.64237,2021.2,2019.7,11.00360968]
[1772120332053,6.39937881,2021.9,2019.6,5.46245244]
[1772120332054,10.79651815,2021.8,2020.3,11.00360968]
[1772120332252,10.79651815,2021.8,2020.5,11.00360968]
[1772120332848,10.79651815,2021.8,2020.5,11.0080407]
[1772120333054,0.00478964,2021.8,2020.5,11.0080407]
[1772120333256,0.00478964,2021.8,2020.7,11.00360968]
[1772120333451,0.00478964,2021.8,2020.9,11.00360968]
[1772120334455,10.79651815,2021.7,2020.9,11.00360968]
[1772120335754,10.79651815,2021.5,2020.6,11.00360968]
[1772120336158,10.80846662,2021.3,2020.5,0.00443102]
[1772120336757,10.80846662,2021.1,2020.5,0.00443102]
[1772120337159,21.19846662,2021.1,2020.5,0.00443102]
[1772120337555,10.80846662,2021.0,2020.5,0.00059895]
[1772120337958,10.80846662,2021.0,2020.3,10.95668086]
[1772120338655,21.19846662,2021.1,2020.3,10.95668086]
[1772120338854,21.19846662,2021.1,2020.3,10.96160393]
[1772120339251,10.80846662,2021.0,2020.3,0.00492307]
[1772120339453,10.80846662,2020.8,2020.3,0.00492307]
[1772120339760,10.403,2021.0,2020.3,10.96160393]
[1772120339955,10.404,2021.2,2020.3,10.96160393]
[1772120340659,10.80846662,2021.1,2020.3,10.96160393]
[1772120340853,0.24734,2021.4,2020.3,10.96160393]
[1772120341059,10.404,2021.5,2020.3,10.96160393]
[1772120341359,21.21346662,2021.7,2020.3,10.96160393]
[1772120341960,0.00478964,2021.8,2020.5,10.95668086]
[1772120342262,0.00478964,2021.8,2020.7,10.95668086]
[1772120343555,6.082,2022.3,2020.7,10.95668086]
[1772120343556,10.80846662,2022.6,2020.7,6.30940971]
[1772120343758,6.09056,2019.5,2018.3,11.52009086]
[1772120343962,6.08936,2019.9,2018.3,11.52009086]
[1772120344259,6.08857,2020.2,2017.8,8.972]
[1772120344260,10.402,2020.2,2018.5,11.52009086]
[1772120344462,40.8,2020.1,2018.7,11.52009086]
[1772120344672,1.23207912,2020.0,2018.7,11.52602878]
[1772120346962,0.24752,2019.9,2018.7,11.52602878]
[1772120347167,1.73787064,2019.9,2018.7,11.52602878]
[1772120347670,42.53787064,2019.9,2018.7,11.52602878]
[1772120347864,6.09383932,2020.1,2018.8,5.22028945]
[1772120347865,0.00511932,2020.1,2018.8,5.22028945]
[1772120348067,0.00511932,2020.1,2018.9,11.34942472]
[1772120348266,0.00511932,2020.1,2019.1,11.34942472]
[1772120349169,0.00511932,2020.1,2019.3,11.34775498]
[1772120349462,1.49287611,2021.0,2019.3,11.34775498]
[1772120349668,1.49287611,2021.0,2019.5,11.31740347]
[1772120349869,10.65237,2021.2,2019.7,11.31740347]
[1772120350765,10.65747433,2021.2,2019.7,11.31740347]
[1772120351468,0.24739,2021.0,2019.7,11.31740347]
[1772120352870,0.24739,2021.0,2019.6,8.982]
[1772120352871,0.00510433,2021.2,2019.9,11.33457131]
[1772120353071,0.00510433,2021.2,2020.1,11.33457131]
[1772120353475,0.00510433,2021.2,2020.3,11.33457131]
[1772120353672,0.24732,2021.6,2020.5,11.43565525]
[1772120354563,0.24732,2021.6,2020.7,11.43522574]
[1772120354765,0.25365929,2021.6,2020.9,11.43522574]
[1772120355067,0.24734,2021.4,2020.6,11.43522574]
[1772120356367,1.34903729,2021.4,2020.6,11.43522574]
[1772120356975,0.24734,2021.4,2020.6,11.43522574]
[1772120357472,0.00633929,2021.6,2020.6,11.43522574]
[1772120357968,0.24722,2022.4,2020.8,11.54854092]
[1772120358171,0.24722,2022.4,2021.0,11.54854092]
[1772120358774,0.24722,2022.4,2021.2,11.54804022]
[1772120358975,0.24722,2022.4,2020.3,0.00619827]
[1772120358976,0.25314028,2022.4,2021.4,11.54804022]
[1772120359177,0.25314028,2022.4,2021.5,20.55004022]
[1772120359367,1.28500996,2022.4,2021.5,11.54804022]
[1772120360170,0.25314028,2022.4,2021.5,11.54804022]
[1772120360575,0.24724,2022.2,2020.3,0.00619827]
[1772120360771,1.30430484,2022.2,2021.2,11.53197937]
[1772120361175,7.38663484,2022.2,2021.2,11.53197937]
[1772120361381,0.24727,2022.0,2021.2,11.53197937]
[1772120361580,1.30081124,2022.0,2021.2,11.53197937]
[1772120362382,7.38373124,2022.0,2021.2,11.03420937]
[1772120363083,0.24729,2021.8,2020.9,11.28079256]
[1772120363279,6.08292,2022.0,2020.6,11.28079256]
[1772120363280,0.24735,2021.4,2020.6,11.28079256]
[1772120363473,6.0841,2021.6,2019.8,11.28079256]
[1772120363474,1.53788803,2020.8,2019.8,11.28079256]
[1772120363783,12.17002,2021.3,2019.8,11.28079256]
[1772120363784,0.24745,2020.5,2019.8,11.28079256]
[1772120364191,0.24745,2020.5,2019.1,5.18062643]
[1772120364192,0.24748,2020.3,2019.5,11.03442187]
[1772120364487,0.25188701,2020.3,2019.5,11.0401028]
[1772120365289,0.2475,2020.1,2019.5,0.00568093]
[1772120365490,0.2475,2020.1,2019.2,11.0364648]
[1772120365792,8.37880875,2020.1,2019.2,11.0364648]
[1772120366184,0.24755,2019.7,2018.9,10.88898639]
[1772120366695,0.24755,2019.7,2018.9,10.89491308]
[1772120367187,10.357,2020.2,2018.9,10.89491308]
[1772120367594,10.357,2020.2,2019.0,10.88898639]
[1772120367595,13.00304007,2020.2,2019.0,10.88898639]
[1772120367788,13.00304007,2020.2,2018.9,6.69e-06]
[1772120367789,2.62342749,2019.3,2018.9,6.69e-06]
[1772120367996,13.22602749,2019.4,2018.9,6.69e-06]
[1772120368291,10.6026,2019.4,2018.9,6.69e-06]
[1772120368687,10.355,2019.4,2018.9,10.88899308]
[1772120368891,10.355,2019.4,2018.9,6.69e-06]
[1772120369494,0.24758,2019.5,2018.9,6.69e-06]
[1772120369696,12.96900912,2019.8,2018.9,6.69e-06]
[1772120369989,2.60900912,2019.8,2018.9,6.69e-06]
[1772120370391,0.24755,2019.7,2018.9,6.69e-06]
[1772120370591,0.24757,2019.5,2018.9,6.69e-06]
[1772120370787,2.85931239,2019.5,2018.9,6.69e-06]
[1772120371687,0.24757,2019.5,2018.9,6.69e-06]
[1772120371887,2.77646851,2019.5,2018.9,6.69e-06]
[1772120372192,3.27741182,2019.3,2018.2,10.88898639]
[1772120372393,13.63641182,2019.3,2018.2,10.88898639]
[1772120372593,10.359,2019.3,2018.2,10.88898639]
[1772120372791,10.359,2019.3,2018.4,10.88898639]
[1772120372993,10.363,2019.7,2018.4,10.88898639]
[1772120373194,10.363,2019.7,2018.4,10.89438144]
[1772120373391,0.24754,2019.8,2018.5,5.65893629]
[1772120373599,0.24754,2019.8,2018.6,10.88898639]
[1772120374495,3.40363316,2019.8,2018.6,10.88898639]
[1772120374696,3.40363316,2019.8,2018.7,10.88898639]
[1772120374899,3.38718154,2019.6,2018.7,10.88898639]
[1772120375098,3.13962154,2019.1,2018.4,0.00539505]
[1772120375402,0.24761,2019.2,2018.4,10.89438144]
[1772120375597,3.41908851,2019.2,2018.4,10.89438144]
[1772120375803,3.41908851,2019.2,2018.4,0.00539505]
[1772120375998,0.24761,2019.2,2018.4,10.89438144]
[1772120376597,10.62955,2019.7,2018.5,10.88898639]
[1772120379703,0.25188701,2020.3,2018.7,10.97195033]
[1772120380002,3.5289362,2020.3,2018.8,10.97195033]
[1772120380208,3.5289362,2020.3,2018.9,10.97195033]
[1772120380604,0.25188701,2020.3,2018.9,10.97195033]
[1772120381498,0.25188701,2020.3,2019.0,5.73018044]
[1772120381706,0.00440701,2020.3,2019.1,10.97195033]
[1772120381906,0.00440701,2020.3,2019.3,10.97195033]
[1772120382509,0.00440701,2020.3,2019.5,10.97195033]
[1772120382706,0.00440701,2020.3,2019.7,10.97195033]
[1772120383800,10.35,2021.0,2019.7,10.97195033]
[1772120384004,0.24736,2021.3,2019.7,10.97195033]
[1772120384219,3.15975401,2021.6,2019.9,11.21947033]
[1772120384505,0.2473,2021.8,2019.9,11.21947033]
[1772120384710,0.25262308,2021.8,2020.1,10.97195033]
[1772120384905,0.25262308,2021.8,2020.3,10.97195033]
[1772120385609,3.25367993,2021.7,2020.3,10.97195033]
[1772120385814,3.50099993,2021.6,2020.3,10.97195033]
[1772120386710,0.00532308,2021.8,2020.3,10.97195033]
[1772120387109,6.33119,2021.7,2020.3,10.97195033]
[1772120387314,3.47666542,2021.5,2020.4,10.97195033]
[1772120387705,44.27666542,2021.5,2020.4,10.97195033]
[1772120388608,41.04733,2021.5,2020.4,10.97195033]
[1772120388812,0.24733,2021.5,2020.4,10.97195033]
[1772120389013,3.22954669,2021.8,2020.4,10.97195033]
[1772120389208,0.2473,2021.7,2020.4,10.97195033]
[1772120389515,0.2473,2021.7,2020.6,10.97195033]
[1772120390014,3.44297037,2021.7,2020.6,10.97195033]
[1772120392113,0.2473,2021.7,2020.6,10.97195033]
[1772120392315,0.00532308,2021.8,2020.8,10.97195033]
[1772120394418,3.46675519,2022.7,2020.8,10.97195033]
[1772120394713,0.24719,2022.7,2021.0,10.97195033]
[1772120394910,3.22155556,2023.0,2020.9,5.19559108]
[1772120394911,3.22155556,2023.0,2021.2,10.97195033]
[1772120395109,3.22155556,2023.0,2021.4,10.97195033]
[1772120395316,3.20804723,2023.6,2021.8,10.97195033]
[1772120395520,0.00436499,2023.6,2022.0,10.97195033]
[1772120395922,0.00436499,2023.6,2022.2,10.97195033]
[1772120396317,0.00436499,2023.6,2022.4,10.99315725]
[1772120397016,0.00436499,2023.6,2022.6,10.99315725]
[1772120397316,0.00436499,2023.6,2022.7,10.99315725]
[1772120397518,0.08602321,2024.4,2022.7,10.99315725]
[1772120397719,3.05928075,2024.5,2022.8,10.99315725]
[1772120397917,3.14529173,2024.5,2022.8,10.99315725]
[1772120398119,3.14529173,2024.5,2022.7,5.26880356]
[1772120398120,3.14529173,2024.5,2023.0,10.99315725]
[1772120398316,3.14529173,2024.5,2023.1,10.99315725]
[1772120398513,3.15144778,2024.5,2023.1,10.99315725]
[1772120398826,0.00615605,2024.5,2023.1,10.99315725]
[1772120399223,3.23268853,2025.1,2023.3,10.99315725]
[1772120399519,3.23268853,2025.1,2023.2,8.25736933]
[1772120399520,3.23268853,2025.4,2023.6,6.07808]
[1772120399824,10.89770644,2026.3,2024.5,10.99315725]
[1772120400017,4.56715204,2026.2,2024.7,10.99315725]
[1772120400215,4.56715204,2025.9,2024.9,10.99315725]
[1772120400814,0.24683,2025.6,2024.7,10.99841426]
[1772120401315,0.24688,2025.2,2024.4,10.99315725]
[1772120402220,4.9735087,2025.7,2024.4,10.99315725]
[1772120402424,4.9735087,2025.7,2024.4,10.99957702]
[1772120402624,11.2924787,2025.6,2024.4,10.99957702]
[1772120402825,4.95791744,2025.3,2024.4,10.99957702]
[1772120403021,10.331,2025.9,2024.4,10.99957702]
[1772120403022,5.42401818,2025.7,2024.4,10.99957702]
[1772120403321,10.331,2025.9,2024.4,10.99957702]
[1772120403714,10.331,2025.9,2024.6,10.99315725]
[1772120404126,0.0051951,2026.2,2024.6,10.99315725]
[1772120404322,0.0051951,2026.2,2024.8,10.99315725]
[1772120404729,10.88402055,2026.2,2024.8,10.99315725]
[1772120404919,4.54770603,2025.9,2024.8,10.99315725]
[1772120405124,0.0051951,2026.2,2024.9,10.99315725]
[1772120405321,0.0051951,2026.2,2025.1,10.99315725]
[1772120406027,0.0051951,2026.2,2025.3,10.99315725]
[1772120406629,4.55317497,2026.2,2025.0,10.99315725]
[1772120406825,0.0051951,2026.2,2025.0,10.99315725]
[1772120407727,2.47300286,2026.9,2025.0,10.99315725]
[1772120407931,4.81120961,2027.0,2025.2,10.99315725]
[1772120408133,0.24666,2027.0,2025.4,10.99315725]
[1772120408335,4.81120961,2027.0,2025.6,10.99315725]
[1772120408831,0.00423518,2027.0,2025.6,10.99315725]
[1772120409733,0.00423518,2027.0,2025.8,10.99315725]
[1772120409937,1.37251899,2027.7,2026.0,10.99315725]
[1772120410234,0.24658,2027.6,2026.2,10.99315725]
[1772120410838,0.25129942,2027.6,2026.2,10.99848061]
[1772120411333,0.00471942,2027.6,2026.2,10.99848061]
[1772120412237,0.25130942,2027.6,2026.2,10.99848061]
[1772120412832,0.00471942,2027.6,2026.2,10.99848061]
[1772120413036,1.37251899,2027.7,2026.4,10.99315725]
[1772120413241,0.24652,2028.2,2026.4,13.46616011]
[1772120413541,0.24652,2028.2,2026.2,6.29765241]
[1772120413542,0.24651,2028.2,2026.6,10.99315725]
[1772120413836,0.24651,2028.2,2026.8,10.99315725]
[1772120414040,0.25242117,2028.2,2027.0,10.99315725]
[1772120414232,0.25242117,2028.2,2027.2,10.99315725]
[1772120414434,0.00591117,2028.2,2027.2,10.99315725]
[1772120414638,0.00591117,2028.2,2027.1,5.57240127]
[1772120414639,0.00591117,2028.2,2027.4,10.99315725]
[1772120414839,6.28643964,2028.0,2026.3,10.99315725]
[1772120415233,6.53303964,2027.5,2026.3,10.99315725]
[1772120415734,5.82497591,2027.4,2026.3,10.99315725]
[1772120416332,8.53794286,2028.0,2026.3,10.99315725]
[1772120416333,8.29797877,2028.0,2026.3,10.99315725]
[1772120416635,8.29797877,2028.0,2026.2,0.00532336]
[1772120416636,6.3124,2027.7,2026.5,10.99315725]
[1772120416835,6.05900479,2027.5,2026.5,10.99315725]
[1772120417544,5.81240479,2027.2,2026.2,10.99848061]
[1772120417740,0.24665,2027.1,2026.2,10.99848061]
[1772120417938,6.60552387,2027.1,2026.2,10.99848061]
[1772120418636,6.60674138,2027.3,2026.2,10.99848061]
[1772120419541,0.24666,2027.1,2026.2,10.99848061]
[1772120419945,6.39079832,2027.1,2026.2,10.99848061]
[1772120420138,6.14413832,2027.4,2026.2,10.99848061]
[1772120420452,0.24658,2027.7,2026.3,10.99315725]
[1772120420453,6.39071832,2027.7,2026.3,10.99315725]
[1772120420745,0.24658,2027.7,2026.3,10.99315725]
[1772120421141,0.24658,2027.7,2026.5,10.99315725]
[1772120421444,6.37382535,2027.7,2026.5,10.99315725]
[1772120422542,6.26698469,2027.5,2026.5,10.99315725]
[1772120422942,6.25024826,2027.3,2026.5,10.99315725]
[1772120423746,0.24662,2027.3,2026.5,10.99315725]
[1772120424452,6.02215151,2027.5,2026.5,10.99315725]
[1772120424747,6.02397113,2027.7,2026.5,10.99315725]
[1772120425045,10.51957,2027.8,2026.5,10.99315725]
[1772120425240,6.01134463,2028.2,2026.5,10.99315725]
[1772120425545,6.25195346,2028.1,2026.7,10.99315725]
[1772120426048,5.98274187,2028.1,2026.7,10.99315725]
[1772120426242,0.24652,2028.1,2026.7,10.99315725]
[1772120426443,0.00591117,2028.2,2026.4,8.993]
[1772120426444,0.00591117,2028.2,2026.9,11.76085059]
[1772120426644,0.00591117,2028.2,2027.1,11.76085059]
[1772120427845,0.00591117,2028.2,2027.1,12.00749059]
[1772120428043,0.00591117,2028.2,2027.1,11.76085059]
[1772120428246,0.24652,2028.1,2027.1,11.76085059]
[1772120428446,5.8295069,2028.1,2027.1,11.76085059]
[1772120428647,5.58506769,2027.8,2026.8,11.76085059]
[1772120428839,10.277,2028.0,2026.8,11.76085059]
[1772120428840,0.24657,2027.7,2026.8,11.76085059]
[1772120429240,0.24655,2027.9,2026.8,11.76085059]
[1772120429449,5.81323651,2027.7,2026.8,11.76085059]
[1772120429949,0.24663,2027.3,2026.5,11.76085059]
[1772120430153,0.24663,2027.3,2026.2,0.00532336]
[1772120430154,5.81258676,2027.1,2026.2,11.76617395]
[1772120430454,0.24667,2026.9,2026.2,11.23737814]
[1772120430654,6.33813932,2026.9,2025.6,11.76085059]
[1772120430853,0.24667,2026.9,2025.6,11.76085059]
[1772120431053,6.31981403,2026.9,2025.6,11.76085059]
[1772120431352,10.275,2027.3,2025.6,11.76471004]
[1772120431353,6.07314403,2027.2,2025.6,11.76471004]
[1772120432145,6.18087179,2027.0,2025.6,11.76471004]
[1772120432352,6.42754179,2026.9,2025.6,11.76471004]
[1772120432549,10.275,2027.3,2025.6,11.76471004]
[1772120432754,6.17885018,2028.1,2026.2,11.76085059]
[1772120433048,3.97573018,2028.2,2026.6,11.76085059]
[1772120433049,0.00591117,2028.2,2026.6,11.76085059]
[1772120433747,0.24652,2028.1,2026.7,8.994]
[1772120433952,0.24652,2028.1,2026.8,11.76085059]
[1772120434646,6.27407909,2028.1,2026.8,11.76085059]
[1772120435051,0.00591117,2028.2,2026.8,11.76085059]
[1772120435251,0.24652,2028.1,2026.8,11.76085059]
[1772120435549,12.45115277,2028.0,2026.8,11.76085059]
[1772120435750,6.1391313,2027.9,2026.8,11.76085059]
[1772120436249,0.24655,2027.9,2026.8,11.76085059]
[1772120436651,0.00591117,2028.2,2026.8,11.76085059]
[1772120436852,0.00591117,2028.2,2026.9,11.76085059]
[1772120440046,0.24647,2028.6,2027.0,0.24666]
[1772120440251,0.24647,2028.6,2026.8,9.008]
[1772120440252,0.24647,2028.6,2027.1,11.41125381]
[1772120441157,6.02064194,2028.6,2027.1,11.41471548]
[1772120441853,10.256,2028.5,2027.2,11.41125381]
[1772120442352,10.256,2028.5,2027.1,9.01346167]
[1772120442353,5.80317054,2028.1,2027.1,0.00346167]
[1772120442553,5.80512239,2028.3,2027.1,11.41471548]
[1772120442855,14.47229901,2028.5,2027.1,11.41471548]
[1772120443057,6.45021583,2028.4,2027.2,11.41125381]
[1772120443247,0.24648,2028.5,2027.2,11.41125381]
[1772120443451,6.45042275,2028.4,2027.2,11.41125381]
[1772120443652,0.24648,2028.5,2027.2,11.41125381]
[1772120443957,6.45002727,2028.4,2027.2,11.41125381]
[1772120444257,5.88941733,2028.5,2027.2,11.41125381]
[1772120444457,5.88943733,2028.3,2027.2,11.41125381]
[1772120444755,0.2465,2028.3,2027.2,11.41125381]
[1772120445150,5.87467825,2028.3,2027.2,11.41125381]
[1772120445346,0.24654,2028.0,2027.2,11.41125381]
[1772120445550,16.13271825,2028.0,2027.2,11.41125381]
[1772120446047,5.66228371,2027.9,2027.1,0.00346167]
[1772120446248,0.24656,2027.8,2027.1,0.00346167]
[1772120446451,6.40800204,2027.2,2025.7,11.41125381]
[1772120446659,10.264,2027.1,2025.7,11.41125381]
[1772120447056,0.24666,2027.0,2025.7,11.41125381]
[1772120447457,0.25246699,2027.0,2025.7,11.41729371]
[1772120448457,0.00580699,2027.0,2025.7,11.41729371]
[1772120450158,0.00580699,2027.0,2025.9,11.41125381]
[1772120450758,5.9793534,2026.9,2025.9,11.41125381]
[1772120451262,0.00580699,2027.0,2025.9,11.41125381]
[1772120451465,5.98516039,2027.0,2025.9,11.41125381]
[1772120451758,0.00580699,2027.0,2025.9,11.41125381]
[1772120452554,5.7166661,2027.0,2025.9,11.41125381]
[1772120452760,5.94228813,2026.9,2025.9,11.41125381]
[1772120452957,22.34040087,2026.8,2025.9,11.41125381]
[1772120453156,15.94061813,2026.8,2025.9,11.41125381]
[1772120453360,10.245,2026.8,2025.9,11.41125381]
[1772120453857,5.63032272,2026.7,2025.9,11.41125381]
[1772120454051,0.24672,2026.5,2025.9,10.91646381]
[1772120454257,0.24672,2026.5,2025.7,0.0060399]
[1772120454452,0.24672,2026.5,2025.8,11.41125381]
[1772120454757,6.11019885,2026.5,2025.8,11.41125381]
[1772120454960,6.11019885,2026.5,2025.7,0.0060399]
[1772120455159,5.86347885,2026.0,2025.3,11.41125381]
[1772120455460,10.248,2025.9,2025.3,11.41125381]
[1772120455657,0.24677,2026.1,2025.3,11.41125381]
[1772120455863,46.65540674,2026.3,2025.3,11.41125381]
[1772120455864,51.05,2026.3,2025.3,11.41125381]
[1772120456064,56.91285165,2026.3,2025.3,11.41125381]
[1772120456265,56.91285165,2026.3,2025.3,11.41766122]
[1772120456564,5.86285165,2026.2,2025.3,11.41766122]
[1772120457364,6.11053572,2026.1,2025.3,11.41766122]
[1772120457564,0.24677,2026.1,2025.3,11.41766122]
[1772120457764,6.00510642,2026.1,2025.3,11.41766122]
[1772120457967,0.24677,2026.1,2025.3,11.41766122]
[1772120458259,6.00510642,2026.1,2025.3,11.41766122]
[1772120458465,6.00512642,2025.9,2025.3,0.00640741]
[1772120460169,10.284,2025.8,2025.3,0.00640741]
[1772120460362,15.94578498,2025.8,2025.3,0.00640741]
[1772120460668,10.288,2025.9,2025.3,11.34638229]
[1772120461267,10.307,2026.6,2025.3,11.34638229]
[1772120461565,0.25247699,2027.0,2025.3,11.34638229]
[1772120461862,0.00580699,2027.0,2025.5,11.33997488]
[1772120462067,0.00580699,2027.0,2025.7,11.33997488]
[1772120462468,0.00580699,2027.0,2025.9,11.33997488]
[1772120463064,5.58649914,2027.0,2025.9,11.33997488]
[1772120463267,11.89624215,2026.7,2025.9,10.84168488]
[1772120463463,0.24677,2026.1,2025.3,11.34638229]
[1772120463668,0.24679,2025.9,2025.3,0.00640741]
[1772120463867,6.52180998,2025.9,2025.3,0.00640741]
[1772120464069,6.52180998,2025.9,2025.0,11.33997488]
[1772120464274,0.24679,2025.9,2025.0,11.33997488]
[1772120464463,6.27501998,2026.2,2025.0,11.33997488]
[1772120464670,10.294,2026.1,2025.0,11.33997488]
[1772120465269,10.294,2026.1,2025.0,11.34633454]
[1772120465867,9.8825997,2026.1,2025.2,11.33997488]
[1772120466169,11.54442803,2026.7,2025.4,11.33997488]
[1772120466473,11.29773803,2026.4,2025.4,11.33997488]
[1772120466671,11.54450803,2026.1,2025.1,11.33997488]
[1772120467472,11.29773803,2026.9,2025.1,11.33997488]
[1772120467670,0.24671,2026.6,2025.1,11.33997488]
[1772120467876,11.29773803,2026.5,2025.1,11.33997488]
[1772120468076,21.58973803,2026.8,2025.1,11.33997488]
[1772120468875,11.54443803,2026.7,2025.2,11.33997488]
[1772120469670,0.24674,2026.3,2025.2,11.33997488]
[1772120469870,10.29,2026.2,2025.2,11.33997488]
[1772120470168,11.54447803,2026.4,2025.2,11.33997488]
[1772120470570,21.58773803,2026.6,2025.2,11.33997488]
[1772120470877,11.54440803,2026.9,2025.2,11.33997488]
[1772120472078,11.54445803,2026.5,2025.2,11.33997488]
[1772120472280,11.54447803,2026.3,2025.2,11.33997488]
[1772120472582,21.58473803,2026.2,2025.2,11.33997488]
[1772120472976,10.287,2026.2,2025.2,11.33997488]
[1772120473179,10.287,2026.6,2025.2,11.33997488]